bitfinex-derivatives/quotes_BTCF0:USTF0_20250417
["timestamp","ask_amount","ask_price","bid_price","bid_amount"]
[1744864285973,0.00108,84036.0,84035.0,0.5444061]
[1744864286173,0.00019684,84050.0,84043.0,0.1189962]
[1744864286475,0.1189934,84045.0,84044.0,0.1189933]
[1744864286870,0.0312,84046.0,84045.0,0.1189933]
[1744864287073,0.0312,84046.0,84045.0,0.1830933]
[1744864287469,0.00017851,84047.0,84046.0,0.1189919]
[1744864287770,0.00017851,84047.0,84046.0,0.1830919]
[1744864288381,0.00017851,84047.0,84046.0,0.2574119]
[1744864288681,0.11908161,84059.0,84058.0,0.1189749]
[1744864288876,0.1189736,84059.0,84058.0,0.4797749]
[1744864289279,0.1190536,84059.0,84058.0,0.4797749]
[1744864289478,0.1190536,84059.0,84058.0,0.5438749]
[1744864291280,0.1190536,84059.0,84058.0,0.5448749]
[1744864291576,0.1190536,84059.0,84058.0,0.5478749]
[1744864291968,0.1190536,84059.0,84058.0,0.4837749]
[1744864292377,0.1490536,84059.0,84058.0,0.4837749]
[1744864292580,0.1805536,84059.0,84058.0,0.4837749]
[1744864293682,0.1805536,84059.0,84058.0,0.5146749]
[1744864293875,0.1805536,84059.0,84058.0,0.5136749]
[1744864294682,0.1805536,84059.0,84058.0,0.5126749]
[1744864294880,0.1805536,84059.0,84058.0,0.4817749]
[1744864295280,0.1805536,84059.0,84058.0,0.4837749]
[1744864296483,0.1805536,84059.0,84058.0,0.4827749]
[1744864296675,0.1805536,84059.0,84058.0,0.4817749]
[1744864296875,0.1805536,84059.0,84058.0,0.4827749]
[1744864297771,0.1805536,84059.0,84058.0,0.4817749]
[1744864297976,0.1805536,84059.0,84058.0,0.4837749]
[1744864298588,0.1805536,84059.0,84058.0,0.4827749]
[1744864298776,0.1805536,84059.0,84058.0,0.4837749]
[1744864303186,0.1805536,84059.0,84058.0,0.4827749]
[1744864303388,0.1805536,84059.0,84058.0,0.4837749]
[1744864304483,0.1805536,84059.0,84058.0,0.4827749]
[1744864304787,0.1805536,84059.0,84058.0,0.4837749]
[1744864310888,0.1805536,84059.0,84058.0,0.1229749]
[1744864311095,0.1805536,84059.0,84058.0,0.4837749]
[1744864314687,0.1805536,84059.0,84058.0,0.1199749]
[1744864314888,0.1805536,84059.0,84058.0,0.4837749]
[1744864317006,0.1805536,84059.0,84058.0,0.1229749]
[1744864317202,0.1805536,84059.0,84058.0,0.4837749]
[1744864319696,0.1805536,84059.0,84058.0,0.4827749]
[1744864319897,0.1805536,84059.0,84058.0,0.4837749]
[1744864320898,0.1805536,84059.0,84058.0,0.4827749]
[1744864321091,0.1805536,84059.0,84058.0,0.3638]
[1744864322495,0.1805536,84059.0,84058.0,0.3608]
[1744864322703,0.1805536,84059.0,84058.0,0.3618]
[1744864323692,0.1189849,84051.0,84050.0,0.00017851]
[1744864324300,0.1189849,84051.0,84050.0,3.468e-05]
[1744864325307,0.1189849,84051.0,84050.0,0.00303468]
[1744864325803,0.1189849,84051.0,84050.0,3.468e-05]
[1744864326004,0.1189849,84051.0,84050.0,0.00103468]
[1744864326701,0.1189849,84051.0,84050.0,3.468e-05]
[1744864327501,0.1189849,84051.0,84050.0,0.11902098]
[1744864328309,0.1189849,84051.0,84050.0,0.15012098]
[1744864328511,0.1189849,84051.0,84050.0,0.15112098]
[1744864328803,0.1503849,84051.0,84050.0,0.15112098]
[1744864329212,0.1503849,84051.0,84050.0,0.15212098]
[1744864329899,0.1503849,84051.0,84050.0,0.15312098]
[1744864333607,0.1504649,84051.0,84050.0,0.15312098]
[1744864334711,0.1504649,84051.0,84050.0,0.15112098]
[1744864334914,0.1504649,84051.0,84050.0,0.15412098]
[1744864336811,0.1504649,84051.0,84050.0,0.15312098]
[1744864338211,0.1504649,84051.0,84050.0,0.15212098]
[1744864338411,0.1504649,84051.0,84050.0,0.15312098]
[1744864340320,0.1504649,84051.0,84050.0,0.15412098]
[1744864341120,0.1504649,84051.0,84050.0,0.15312098]
[1744864343620,0.1504649,84051.0,84050.0,0.15112098]
[1744864343820,0.1504649,84051.0,84050.0,0.15312098]
[1744864344420,0.1504649,84051.0,84050.0,0.15512098]
[1744864344716,0.1504649,84051.0,84050.0,0.15412098]
[1744864344920,0.1504649,84051.0,84050.0,0.15512098]
[1744864346821,0.1504649,84051.0,84050.0,0.15312098]
[1744864348025,0.1504649,84051.0,84050.0,0.15212098]
[1744864348722,0.1504649,84051.0,84050.0,0.15112098]
[1744864349721,0.1504649,84051.0,84050.0,0.15012098]
[1744864349922,0.1504649,84051.0,84050.0,0.15212098]
[1744864350829,0.1504649,84051.0,84050.0,0.15012098]
[1744864351034,0.1504649,84051.0,84050.0,0.00103468]
[1744864351319,0.1189891,84048.0,84047.0,0.3608]
[1744864352227,0.1832891,84048.0,84047.0,0.3608]
[1744864352528,0.1190004,84040.0,84039.0,0.07441851]
[1744864353523,0.1190004,84040.0,84039.0,0.07741851]
[1744864353926,0.1190004,84040.0,84039.0,0.22842031]
[1744864354420,0.1520004,84040.0,84039.0,0.22842031]
[1744864354625,0.1520004,84040.0,84039.0,0.22742031]
[1744864355330,0.1520004,84040.0,84039.0,0.22842031]
[1744864360328,0.1851004,84040.0,84039.0,0.22842031]
[1744864362930,0.1851004,84040.0,84039.0,0.21949026]
[1744864368936,0.1521004,84040.0,84039.0,0.21949026]
[1744864374639,0.1521004,84040.0,84039.0,0.58029026]
[1744864381754,0.1521004,84040.0,84039.0,0.5713608]
[1744864384456,0.1521004,84040.0,84039.0,0.5703608]
[1744864384751,0.1521004,84040.0,84039.0,0.5713608]
[1744864385451,0.1521004,84040.0,84039.0,0.5723608]
[1744864385651,0.1521804,84040.0,84039.0,0.5723608]
[1744864386743,0.1521804,84040.0,84039.0,0.5693608]
[1744864386946,0.1521804,84040.0,84039.0,0.5723608]
[1744864387351,0.1521804,84040.0,84039.0,0.51298031]
[1744864387551,0.1521804,84040.0,84039.0,0.51498031]
[1744864387849,0.1521804,84040.0,84039.0,0.51598031]
[1744864400945,0.1826804,84040.0,84039.0,0.51598031]
[1744864403157,0.1826804,84040.0,84039.0,0.15518031]
[1744864403557,0.1826804,84040.0,84039.0,0.51598031]
[1744864403757,0.1826804,84040.0,84039.0,0.48398031]
[1744864405363,0.1826804,84040.0,84039.0,0.47505092]
[1744864406265,0.1826804,84040.0,84039.0,0.47405092]
[1744864407260,0.1826804,84040.0,84039.0,0.47205092]
[1744864407558,0.1826804,84040.0,84039.0,0.47405092]
[1744864415254,0.1826804,84040.0,84039.0,0.50515092]
[1744864416163,0.1826804,84040.0,84039.0,0.53585092]
[1744864417561,0.1826804,84040.0,84039.0,0.47405092]
[1744864422473,0.1826804,84040.0,84039.0,0.50425092]
[1744864430473,8e-05,84040.0,84039.0,0.50425092]
[1744864430778,0.00026573,84055.0,84047.0,0.1189905]
[1744864430985,0.00017851,84048.0,84047.0,0.4797905]
[1744864431170,0.00025851,84048.0,84047.0,0.4797905]
[1744864431981,0.00017851,84048.0,84047.0,0.4797905]
[1744864432171,0.00025851,84048.0,84047.0,0.4797905]
[1744864432367,0.00017851,84048.0,84047.0,0.4797905]
[1744864432768,0.00025851,84048.0,84047.0,0.49170112]
[1744864433968,0.00025851,84048.0,84047.0,0.49670112]
[1744864434264,0.00025851,84048.0,84047.0,0.49870112]
[1744864435077,0.00025851,84048.0,84047.0,0.49670112]
[1744864435269,0.00025851,84048.0,84047.0,0.49970112]
[1744864436878,0.00025851,84048.0,84047.0,0.49470112]
[1744864437078,0.00025851,84048.0,84047.0,0.86050112]
[1744864437476,0.0306,84059.0,84058.0,0.1189749]
[1744864437674,0.0924819,84066.0,84065.0,0.118965]
[1744864438380,0.0924819,84066.0,84065.0,0.179765]
[1744864438778,0.2114481,84066.0,84065.0,0.179765]
[1744864438977,0.2114481,84066.0,84065.0,0.118965]
[1744864440580,0.2114481,84066.0,84065.0,0.119965]
[1744864442280,0.2114481,84066.0,84065.0,0.001]
[1744864442577,0.2114481,84066.0,84065.0,0.01004028]
[1744864442779,0.2114481,84066.0,84065.0,0.119965]
[1744864444791,0.2114481,84066.0,84065.0,0.480765]
[1744864446786,0.1189749,84058.0,84057.0,0.00017851]
[1744864446975,0.4797749,84058.0,84057.0,0.00017851]
[1744864447584,0.5439749,84058.0,84057.0,0.00017851]
[1744864447972,0.1189905,84047.0,84046.0,0.3608]
[1744864448975,0.13074985,84047.0,84046.0,0.3608]
[1744864449881,0.1189905,84047.0,84046.0,0.3608]
[1744864450480,0.1807905,84047.0,84046.0,0.3608]
[1744864452588,0.1189919,84046.0,84045.0,0.1189926]
[1744864453085,0.1825919,84046.0,84045.0,0.1189926]
[1744864453782,0.1825919,84046.0,84045.0,0.1199926]
[1744864455893,0.1493919,84046.0,84045.0,0.1199926]
[1744864456097,0.0304,84046.0,84045.0,0.1854926]
[1744864456405,0.03048,84046.0,84045.0,0.1854926]
[1744864457705,0.1494719,84046.0,84045.0,0.1854926]
[1744864458097,0.1190719,84046.0,84045.0,0.1854926]
[1744864459098,0.1190719,84046.0,84045.0,0.1884926]
[1744864459700,0.1190719,84046.0,84045.0,0.1904926]
[1744864460208,0.1190719,84046.0,84045.0,0.1577926]
[1744864460699,0.1502719,84046.0,84045.0,0.006]
[1744864460904,0.1817719,84046.0,84045.0,0.006]
[1744864461301,0.1817719,84046.0,84045.0,0.004]
[1744864461501,0.1817719,84046.0,84045.0,0.005]
[1744864461798,0.1817719,84046.0,84045.0,0.1239933]
[1744864462196,0.1817719,84046.0,84045.0,0.1199933]
[1744864462391,0.1817719,84046.0,84045.0,0.1229933]
[1744864463502,0.1817719,84046.0,84045.0,0.4837933]
[1744864463802,0.1817719,84046.0,84045.0,0.1199933]
[1744864464000,0.1817719,84046.0,84045.0,0.1219933]
[1744864464398,0.1817719,84046.0,84045.0,0.4827933]
[1744864464900,0.1817719,84046.0,84045.0,0.1219933]
[1744864465406,0.1817719,84046.0,84045.0,0.4827933]
[1744864465797,0.1817719,84046.0,84045.0,0.4817933]
[1744864465997,0.1817719,84046.0,84045.0,0.4807933]
[1744864467202,0.1817719,84046.0,84045.0,0.3929]
[1744864467409,0.1817719,84046.0,84045.0,0.3618]
[1744864467704,0.1817719,84046.0,84045.0,0.4807933]
[1744864468994,0.1817719,84046.0,84045.0,0.4797933]
[1744864469701,0.1817719,84046.0,84045.0,0.1189933]
[1744864470097,0.1817719,84046.0,84045.0,0.1199933]
[1744864470896,0.1817719,84046.0,84045.0,0.11106383]
[1744864471699,0.1817719,84046.0,84045.0,0.14366383]
[1744864475503,0.1817719,84046.0,84045.0,0.17636383]
[1744864476603,0.1817719,84046.0,84045.0,0.17536383]
[1744864476798,0.1817719,84046.0,84045.0,0.17636383]
[1744864477202,0.1817719,84046.0,84045.0,0.17536383]
[1744864477408,0.1817719,84046.0,84045.0,0.17636383]
[1744864480914,0.1817719,84046.0,84045.0,0.16743443]
[1744864491209,0.1817719,84046.0,84045.0,0.15850503]
[1744864502310,0.1817719,84046.0,84045.0,0.001]
[1744864502510,0.1817719,84046.0,84045.0,0.1199933]
[1744864502722,0.1817719,84046.0,84045.0,0.001]
[1744864503113,0.1817719,84046.0,84045.0,0.1199933]
[1744864505022,0.1817719,84046.0,84045.0,0.1189933]
[1744864505220,0.1817719,84046.0,84045.0,0.1199933]
[1744864510221,0.1502719,84046.0,84045.0,0.1199933]
[1744864510428,0.1501919,84046.0,84045.0,0.1199933]
[1744864510614,0.1502719,84046.0,84045.0,0.1199933]
[1744864511219,0.1502719,84046.0,84045.0,0.1209933]
[1744864511419,0.1502719,84046.0,84045.0,0.1219933]
[1744864524238,8e-05,84046.0,84045.0,0.1219933]
[1744864524441,0.0322,84050.0,84049.0,0.1189877]
[1744864525134,0.0322,84050.0,84049.0,0.1810877]
[1744864525637,0.1511863,84050.0,84049.0,0.1810877]
[1744864526445,0.1511863,84050.0,84049.0,0.1820877]
[1744864527433,0.1511863,84050.0,84049.0,0.1810877]
[1744864527640,0.1511863,84050.0,84049.0,0.1850877]
[1744864528042,0.1511863,84050.0,84049.0,0.1830877]
[1744864528241,0.1511863,84050.0,84049.0,0.1860877]
[1744864528935,0.1511863,84050.0,84049.0,0.5458877]
[1744864530145,0.1511863,84050.0,84049.0,0.5428877]
[1744864530444,0.1511863,84050.0,84049.0,0.5458877]
[1744864530741,0.1511863,84050.0,84049.0,0.5448877]
[1744864532842,0.1511863,84050.0,84049.0,0.5428877]
[1744864533044,0.1511863,84050.0,84049.0,0.5458877]
[1744864534044,0.1511863,84050.0,84049.0,0.1850877]
[1744864534242,0.1511863,84050.0,84049.0,0.5458877]
[1744864535146,0.1511863,84050.0,84049.0,0.5448877]
[1744864535344,0.1511863,84050.0,84049.0,0.5458877]
[1744864536839,0.1511863,84050.0,84049.0,0.5448877]
[1744864537238,0.1811863,84050.0,84049.0,0.5448877]
[1744864537743,0.1811863,84050.0,84049.0,0.5438877]
[1744864537947,0.1811863,84050.0,84049.0,0.5448877]
[1744864543151,0.1811863,84050.0,84049.0,0.1840877]
[1744864543551,0.1811863,84050.0,84049.0,0.1535877]
[1744864544446,0.1811863,84050.0,84049.0,0.1219877]
[1744864544856,0.1811863,84050.0,84049.0,0.003]
[1744864546556,0.1811863,84050.0,84049.0,0.001]
[1744864546854,0.1811863,84050.0,84049.0,0.1219877]
[1744864547152,0.1811863,84050.0,84049.0,0.1189877]
[1744864547459,0.1821863,84050.0,84049.0,0.1189877]
[1744864547955,0.1811863,84050.0,84049.0,0.1189877]
[1744864548356,0.1811863,84050.0,84049.0,0.1199877]
[1744864549356,0.0622,84050.0,84049.0,0.1199877]
[1744864549856,0.0622,84050.0,84049.0,0.1189877]
[1744864550058,0.0622,84050.0,84049.0,0.1199877]
[1744864550746,0.06228,84050.0,84049.0,0.1199877]
[1744864550950,0.06228,84050.0,84049.0,0.1526877]
[1744864551151,0.06228,84050.0,84049.0,0.1546877]
[1744864552058,0.06228,84050.0,84049.0,0.1566877]
[1744864553263,0.06228,84050.0,84049.0,0.1536877]
[1744864553458,0.06228,84050.0,84049.0,0.1576877]
[1744864553860,0.06228,84050.0,84049.0,0.1536877]
[1744864554159,0.06228,84050.0,84049.0,0.1576877]
[1744864555162,0.06228,84050.0,84049.0,0.1556877]
[1744864555362,0.06228,84050.0,84049.0,0.1576877]
[1744864557263,0.06228,84050.0,84049.0,0.1536877]
[1744864557465,0.06228,84050.0,84049.0,0.1576877]
[1744864558161,0.03228,84050.0,84049.0,0.1576877]
[1744864560471,0.0322,84050.0,84049.0,0.1576877]
[1744864560668,8e-05,84050.0,84049.0,0.1576877]
[1744864560871,0.4114,84063.0,84062.0,0.1189693]
[1744864561066,0.4114,84063.0,84062.0,0.4797693]
[1744864561766,0.41148,84063.0,84062.0,0.5439693]
[1744864562665,0.44318,84063.0,84062.0,0.5439693]
[1744864563979,0.03178,84063.0,84062.0,0.5439693]
[1744864564169,0.03178,84063.0,84062.0,0.5449693]
[1744864564568,0.03178,84063.0,84054.0,0.36097851]
[1744864564569,0.1189792,84055.0,84054.0,0.36097851]
[1744864564869,0.1189792,84055.0,84054.0,0.11915911]
[1744864565467,0.1501792,84055.0,84054.0,0.11915911]
[1744864565665,0.1811792,84055.0,84054.0,0.11915911]
[1744864565866,0.1811792,84055.0,84054.0,0.12215911]
[1744864567369,0.1811792,84055.0,84054.0,0.11915911]
[1744864568379,0.1811792,84055.0,84054.0,0.12315911]
[1744864569274,0.1811792,84055.0,84054.0,0.12115911]
[1744864571689,0.1811792,84055.0,84054.0,0.12015911]
[1744864571891,0.1811792,84055.0,84054.0,0.12115911]
[1744864575290,0.1811792,84055.0,84054.0,0.12015911]
[1744864575492,0.1811792,84055.0,84054.0,0.12115911]
[1744864580700,0.1811792,84055.0,84054.0,0.12015911]
[1744864580899,0.1811792,84055.0,84054.0,0.12115911]
[1744864581402,0.1811792,84055.0,84054.0,0.12015911]
[1744864581590,0.1811792,84055.0,84054.0,0.12115911]
[1744864583499,0.1811792,84055.0,84054.0,0.12015911]
[1744864583700,0.1811792,84055.0,84054.0,0.12115911]
[1744864584301,0.1811792,84055.0,84054.0,0.12215911]
[1744864584701,0.1811792,84055.0,84054.0,0.12015911]
[1744864584896,0.1811792,84055.0,84054.0,0.12115911]
[1744864590904,0.1811792,84055.0,84054.0,0.48195911]
[1744864594108,0.1811792,84055.0,84054.0,0.12115911]
[1744864594308,0.1811792,84055.0,84054.0,0.48195911]
[1744864595410,0.1811792,84055.0,84054.0,0.12115911]
[1744864602208,0.1811792,84055.0,84054.0,0.00217851]
[1744864602620,0.1189877,84049.0,84048.0,0.0316]
[1744864603111,0.1189877,84049.0,84048.0,0.1505891]
[1744864603513,0.1827877,84049.0,84048.0,0.1505891]
[1744864604016,0.1827877,84049.0,84048.0,0.1826891]
[1744864605112,0.1507877,84049.0,84048.0,0.1836891]
[1744864606705,0.1507877,84049.0,84048.0,0.1199891]
[1744864607012,0.1507877,84049.0,84048.0,0.002]
[1744864607215,0.1507877,84049.0,84048.0,0.1209891]
[1744864607709,0.1827877,84049.0,84048.0,0.1209891]
[1744864607914,0.1827877,84049.0,84048.0,0.1219891]
[1744864608114,0.1827877,84049.0,84048.0,0.1519891]
[1744864608306,0.1827877,84049.0,84048.0,0.1509891]
[1744864608702,0.1827877,84049.0,84048.0,0.1519891]
[1744864609314,0.1827877,84049.0,84048.0,0.1509891]
[1744864610316,0.1827877,84049.0,84048.0,0.1519891]
[1744864610817,0.1827877,84049.0,84048.0,0.1509891]
[1744864611013,0.1827877,84049.0,84048.0,0.1810891]
[1744864611517,0.1507877,84049.0,84048.0,0.1810891]
[1744864615619,0.1507877,84049.0,84048.0,0.5418891]
[1744864616517,0.1508677,84049.0,84048.0,0.5418891]
[1744864619320,0.1508677,84049.0,84048.0,0.1810891]
[1744864619721,0.1508677,84049.0,84048.0,0.5418891]
[1744864620220,0.1508677,84049.0,84048.0,0.1810891]
[1744864620417,0.1508677,84049.0,84048.0,0.5418891]
[1744864623028,0.1508677,84049.0,84048.0,0.53296026]
[1744864623919,0.1508677,84049.0,84048.0,0.17216026]
[1744864624121,0.1508677,84049.0,84048.0,0.53296026]
[1744864624523,0.1508677,84049.0,84048.0,0.3628]
[1744864625125,0.1508677,84049.0,84048.0,0.4817891]
[1744864625827,0.1508677,84049.0,84048.0,0.4807891]
[1744864626326,0.1508677,84049.0,84048.0,0.4817891]
[1744864626624,0.1508677,84049.0,84048.0,0.4807891]
[1744864626825,0.1508677,84049.0,84048.0,0.4817891]
[1744864627825,0.1508677,84049.0,84048.0,0.1209891]
[1744864631718,0.1508677,84049.0,84048.0,0.002]
[1744864633013,0.3484677,84049.0,84048.0,0.001]
[1744864633220,0.1508677,84049.0,84048.0,0.002]
[1744864633522,0.2103621,84049.0,84048.0,0.1189891]
[1744864635129,0.2103621,84049.0,84048.0,0.1199891]
[1744864640335,0.2103621,84049.0,84048.0,0.001]
[1744864640729,0.2103621,84049.0,84048.0,0.1199891]
[1744864641839,0.2103621,84049.0,84048.0,0.1189891]
[1744864643139,0.2103621,84049.0,84048.0,0.1199891]
[1744864643935,0.2103621,84049.0,84048.0,0.001]
[1744864644327,0.2103621,84049.0,84048.0,0.1199891]
[1744864645144,0.2103621,84049.0,84048.0,0.1189891]
[1744864647139,0.2103621,84049.0,84048.0,0.1199891]
[1744864647438,0.2103621,84049.0,84048.0,0.001]
[1744864647640,0.2103621,84049.0,84045.0,0.3608]
[1744864647641,0.1189919,84046.0,84045.0,0.3608]
[1744864648146,0.1189919,84046.0,84045.0,0.35195055]
[1744864648538,0.1822919,84046.0,84045.0,0.35195055]
[1744864649539,0.1832919,84046.0,84045.0,0.35195055]
[1744864650138,0.1832919,84046.0,84045.0,8e-05]
[1744864652752,0.1832919,84046.0,84045.0,0.03118]
[1744864653254,0.3808919,84046.0,84045.0,0.03118]
[1744864654050,0.3808919,84046.0,84045.0,8e-05]
[1744864655355,0.3798919,84046.0,84045.0,8e-05]
[1744864655559,0.3808919,84046.0,84045.0,8e-05]
[1744864661455,0.1822919,84046.0,84045.0,0.1512733]
[1744864661654,0.1822919,84046.0,84045.0,0.1840733]
[1744864662759,0.1822919,84046.0,84045.0,0.1850733]
[1744864663261,0.1822919,84046.0,84045.0,0.1860733]
[1744864663262,0.3798919,84046.0,84045.0,0.1860733]
[1744864664061,0.1822919,84046.0,84045.0,0.1860733]
[1744864664454,0.1822919,84046.0,84045.0,0.1850733]
[1744864664764,0.1822919,84046.0,84045.0,0.5468733]
[1744864665462,0.1822919,84046.0,84045.0,0.5458733]
[1744864665763,0.1822919,84046.0,84045.0,0.5468733]
[1744864667158,0.1822919,84046.0,84045.0,0.1860733]
[1744864667357,0.1822919,84046.0,84045.0,0.5468733]
[1744864667861,0.1822919,84046.0,84045.0,0.1860733]
[1744864668063,0.1822919,84046.0,84045.0,0.5468733]
[1744864668562,0.1822919,84046.0,84045.0,0.5458733]
[1744864668762,0.1822919,84046.0,84045.0,0.5468733]
[1744864669659,0.1822919,84046.0,84045.0,0.1860733]
[1744864669961,0.1822919,84046.0,84045.0,0.5468733]
[1744864673864,0.1822919,84046.0,84045.0,0.1860733]
[1744864674068,0.1822919,84046.0,84045.0,0.5468733]
[1744864676072,0.1822919,84046.0,84045.0,0.1860733]
[1744864676370,0.1822919,84046.0,84045.0,0.5468733]
[1744864676671,0.1822919,84046.0,84045.0,0.1860733]
[1744864676878,0.1822919,84046.0,84045.0,0.5468733]
[1744864677776,0.1822919,84046.0,84045.0,0.1860733]
[1744864677976,0.1822919,84046.0,84045.0,0.5468733]
[1744864678574,0.1822919,84046.0,84045.0,0.1860733]
[1744864678775,0.1822919,84046.0,84045.0,0.5468733]
[1744864680575,0.1822919,84046.0,84045.0,0.1860733]
[1744864680875,0.1822919,84046.0,84045.0,0.5458733]
[1744864681774,0.1518919,84046.0,84045.0,0.5458733]
[1744864681974,0.1189919,84046.0,84045.0,0.5458733]
[1744864682173,0.1190719,84046.0,84045.0,0.5458733]
[1744864682375,0.1190719,84046.0,84045.0,0.5448733]
[1744864683776,0.1190719,84046.0,84045.0,0.5458733]
[1744864684482,0.1190719,84046.0,84045.0,0.5468733]
[1744864684880,0.4114,84050.0,84049.0,0.1189877]
[1744864685180,0.4114,84050.0,84049.0,0.4797877]
[1744864685980,0.4114,84050.0,84049.0,0.5445877]
[1744864686173,0.4114,84050.0,84049.0,0.55636425]
[1744864686371,0.00010801,84056.0,84050.0,0.059493]
[1744864686574,0.118976,84058.0,84057.0,0.1784611]
[1744864686769,0.118976,84058.0,84057.0,0.2758611]
[1744864689169,0.118976,84058.0,84057.0,0.6396611]
[1744864689574,0.118976,84058.0,84057.0,0.6416611]
[1744864693287,0.1784572,84061.0,84060.0,0.1189721]
[1744864693483,0.1189686,84063.0,84062.0,0.1784505]
[1744864694184,0.1189686,84063.0,84062.0,0.2411505]
[1744864694585,0.1190486,84063.0,84062.0,0.2411505]
[1744864694987,0.1190486,84063.0,84062.0,0.2421505]
[1744864695286,8e-05,84063.0,84062.0,0.2421505]
[1744864695482,0.00017851,84066.0,84065.0,0.118965]
[1744864695788,0.00017851,84066.0,84065.0,0.479765]
[1744864696178,0.11914211,84066.0,84065.0,0.479765]
[1744864696387,0.11914211,84066.0,84065.0,0.576965]
[1744864700190,0.11914211,84066.0,84065.0,0.216165]
[1744864700391,0.11914211,84066.0,84065.0,0.576965]
[1744864703293,0.11914211,84066.0,84065.0,0.216165]
[1744864703495,0.11914211,84066.0,84065.0,0.576965]
[1744864704394,0.15124211,84066.0,84065.0,0.576965]
[1744864705096,0.15124211,84066.0,84065.0,0.216165]
[1744864705293,0.15124211,84066.0,84065.0,0.576965]
[1744864709896,0.15124211,84066.0,84065.0,0.545365]
[1744864710407,0.15124211,84066.0,84065.0,0.479765]
[1744864712503,0.15124211,84066.0,84065.0,0.3608]
[1744864713707,0.15224211,84066.0,84065.0,0.3608]
[1744864714102,0.1189665,84064.0,84063.0,0.1189673]
[1744864715108,0.1804665,84064.0,84063.0,0.1189673]
[1744864717204,0.1804665,84064.0,84063.0,0.11004]
[1744864723909,0.1491665,84064.0,84063.0,0.11104]
[1744864724215,0.1491665,84064.0,84063.0,0.11204]
[1744864724412,0.1492465,84064.0,84063.0,0.11204]
[1744864726112,0.1492465,84064.0,84063.0,0.11104]
[1744864726318,0.1492465,84064.0,84063.0,0.11204]
[1744864727020,0.1492465,84064.0,84063.0,0.11104]
[1744864727317,0.1492465,84064.0,84063.0,0.11204]
[1744864728216,0.1492465,84064.0,84063.0,0.1031124]
[1744864728807,0.1492465,84064.0,84063.0,0.1021124]
[1744864729108,0.1492465,84064.0,84063.0,0.1031124]
[1744864731516,0.1492465,84064.0,84063.0,0.002]
[1744864731719,0.1189693,84062.0,84061.0,0.3608]
[1744864732522,0.1823693,84062.0,84061.0,0.3608]
[1744864733622,0.1833693,84062.0,84061.0,0.3608]
[1744864734422,0.1853693,84062.0,84061.0,0.3608]
[1744864734720,0.1853693,84062.0,84055.0,0.1189782]
[1744864734721,0.1189778,84056.0,84055.0,0.4797782]
[1744864735512,0.1820778,84056.0,84055.0,0.4797782]
[1744864737416,0.1820778,84056.0,84055.0,0.1189782]
[1744864738521,0.1820778,84056.0,84055.0,0.1199782]
[1744864739112,0.1820778,84056.0,84055.0,0.1189782]
[1744864739310,0.1820778,84056.0,84055.0,0.1199782]
[1744864739726,0.1820778,84056.0,84055.0,0.001]
[1744864739926,0.1189792,84055.0,84054.0,0.1189799]
[1744864740418,0.1503792,84055.0,84054.0,0.1828799]
[1744864740821,0.1189773,84057.0,84056.0,0.1189764]
[1744864741219,0.1190573,84057.0,84056.0,0.1797764]
[1744864741915,0.1510573,84057.0,84056.0,0.1797764]
[1744864742425,0.1510573,84057.0,84056.0,0.1807764]
[1744864743227,0.1510573,84057.0,84056.0,0.1797764]
[1744864743524,0.1510573,84057.0,84056.0,0.1807764]
[1744864744128,0.1510573,84057.0,84056.0,0.1827764]
[1744864746222,0.1510573,84057.0,84056.0,0.2127764]
[1744864746727,0.1510573,84057.0,84056.0,0.2107764]
[1744864746927,0.1510573,84057.0,84056.0,0.2117764]
[1744864747421,0.1510573,84057.0,84056.0,0.2107764]
[1744864747627,0.1510573,84057.0,84056.0,0.2117764]
[1744864749525,0.1510573,84057.0,84056.0,0.2107764]
[1744864749827,0.1510573,84057.0,84056.0,0.2117764]
[1744864750227,0.1510573,84057.0,84056.0,0.2107764]
[1744864750431,0.1510573,84057.0,84056.0,0.2117764]
[1744864756744,0.1510573,84057.0,84056.0,0.1811778]
[1744864756939,0.1825573,84057.0,84056.0,0.1811778]
[1744864757139,0.1825573,84057.0,84056.0,0.1509778]
[1744864757440,0.1825573,84057.0,84056.0,0.032]
[1744864757826,0.1825573,84057.0,84056.0,0.031]
[1744864758034,0.1835573,84057.0,84056.0,0.1499778]
[1744864758933,0.1835573,84057.0,84056.0,0.1489778]
[1744864760131,0.1835573,84057.0,84056.0,0.03]
[1744864760322,0.07649465,84057.0,84054.0,0.033]
[1744864760527,0.1189792,84055.0,84054.0,0.033]
[1744864761226,0.1189792,84055.0,84054.0,0.1519806]
[1744864761831,0.118982,84053.0,84052.0,0.0311]
[1744864762028,0.1189849,84051.0,84050.0,0.1189854]
[1744864762535,0.1189849,84051.0,84050.0,0.1503854]
[1744864762748,0.1808849,84051.0,84050.0,0.1503854]
[1744864763632,0.1808849,84051.0,84050.0,0.1523854]
[1744864763939,0.1808849,84051.0,84050.0,0.1533854]
[1744864764237,0.1808849,84051.0,84050.0,0.1523854]
[1744864765839,0.1808849,84051.0,84050.0,0.1513854]
[1744864766530,0.1808849,84051.0,84050.0,0.1523854]
[1744864766727,0.1808849,84051.0,84050.0,0.1513854]
[1744864767230,0.1808849,84051.0,84050.0,0.1523854]
[1744864768441,0.1808849,84051.0,84050.0,0.1513854]
[1744864768840,0.1808849,84051.0,84050.0,0.1523854]
[1744864769228,0.1808849,84051.0,84050.0,0.1513854]
[1744864769432,0.1808849,84051.0,84050.0,0.1533854]
[1744864771243,0.1808849,84051.0,84050.0,0.1842854]
[1744864771539,0.0317,84051.0,84050.0,0.1842854]
[1744864771843,0.1189849,84051.0,84050.0,0.1842854]
[1744864774444,0.150583,84053.0,84052.0,0.1189834]
[1744864774743,0.150583,84053.0,84052.0,0.4797834]
[1744864775735,0.150663,84053.0,84052.0,0.4797834]
[1744864775935,0.150663,84053.0,84052.0,0.1189834]
[1744864776137,0.150663,84053.0,84052.0,0.4807834]
[1744864777142,0.03168,84053.0,84052.0,0.4827834]
[1744864777443,0.03168,84053.0,84052.0,0.4837834]
[1744864778342,0.03168,84053.0,84052.0,0.4847834]
[1744864786745,0.03168,84053.0,84052.0,0.4857834]
[1744864788139,0.150662,84053.0,84052.0,0.4857834]
[1744864788339,0.150662,84053.0,84052.0,0.4837834]
[1744864788544,0.150662,84053.0,84052.0,0.4867834]
[1744864788944,0.150662,84053.0,84052.0,0.4827834]
[1744864789145,0.150662,84053.0,84052.0,0.4857834]
[1744864789347,0.150662,84053.0,84052.0,0.4847834]
[1744864790752,0.150662,84053.0,84052.0,0.1239834]
[1744864791048,0.150662,84053.0,84052.0,0.4847834]
[1744864791450,0.150662,84053.0,84052.0,0.1239834]
[1744864791749,0.150662,84053.0,84052.0,0.4847834]
[1744864792448,0.150662,84053.0,84052.0,0.1239834]
[1744864792643,0.150662,84053.0,84052.0,0.4847834]
[1744864797456,0.150662,84053.0,84052.0,0.1239834]
[1744864797752,0.150662,84053.0,84052.0,0.4847834]
[1744864799755,0.181162,84053.0,84052.0,0.4847834]